{"text_format":"3","workbook":"xlsx","n_sheets":2,"sheets":["概况表","Sheet1"],"not_rendered":{"defined_names":1},"read":"whole","date_system":"1900"}

{"sheet":"概况表","index":0,"n_rows":67,"n_cols":21,"rows_kept":67,"merged":[[0,0,1,0],[0,1,1,1],[0,2,1,2],[0,3,1,3],[0,4,1,4],[0,5,1,5],[0,6,1,6],[0,7,1,7],[0,8,1,8],[0,9,1,9],[0,10,1,10],[0,11,1,11],[0,12,1,12],[0,13,0,14],[0,15,0,16],[0,17,1,17],[0,18,1,18],[0,19,1,19],[0,20,1,20]]}
["序号","医保区划","医疗机构名称","医疗机构性质(公立、民营）","医疗机构等级","地址","联系方式","是否参与口腔种植医疗服务收费和耗材价格专项治理\n（响应全流程价格调控）","是否参与口腔种植牙耗材集采","是否实施牙冠竞价挂网结果\n（指是否通过采购平台采购限价挂网产品）","种植体系统和牙冠是否按“零差率”销售","是否在采购平台上采购中选产品","单颗常规种植牙全流程医疗服务项目收费①","种植体系统",null,"牙冠",null,"单颗常规种植牙总费用 （①+②+③）","官网链接","备注","价格警示"]
[{"$nulls":13},"厂家名称","价格②","厂家名称","价格③"]
[{"$f":"ROW()-2","v":1},"蓬江区","江门市中心医院","公立","三级","江门市蓬江区海傍街23号","0750-3165989","是","是","是","是","是",4320,"B&B齿科公司B. & B. Dental s.r.l.、士卓曼研究院股份公司Institut Straumann AG","1163-1855","中山市新致美义齿科技有限公司、广州市进达义齿技术开发有限公司","399-440","5882-6615",null,null,{"$f":"IF(COUNTIF(H3:K3,\"是\")=0,\"完全不响应专项治理措施\",\"落实\"&COUNTIF(H3:I3,\"是\")+COUNTIF(J3:K3,\"是\")&\"项专项治理措施\")","v":"落实4项专项治理措施"}]
[2,"蓬江区","江门市口腔医院（江门市牙病防治指导中心）","公立","二级","江门市蓬江区建设路24号；江门市蓬江区永利街4号；江门市蓬江区东华一路36号104、105；江门市蓬江区跃进路20号；江门市蓬江区农林东路36号103；江门市蓬江区梧岗里107号102；江门市蓬江区华园南36号；江门市蓬江区迎宾大道西38号101、114；江门市江海区阳山路1号4号铺","0750-3325934","是","是","是","是","是",4316.28,"士卓曼研究院股份公司 Institut Straumann AG、诺贝尔生物公司Nobel Biocare AB、阿尔法生物科技有限公司Alpha-Bio Tec LTD.、登士柏种植体制造公司DENTSPLY Implants Manufacturing GmbH、常州百康特医疗器","630-4407","洋紫荆牙科器材（深圳）有限公司、江门市口腔医院修复工艺中心、深圳康泰健医疗科技股份有限公司","440-1203","5386.28-9926.28",null,null,"落实4项专项治理措施"]
[3,"新会区","江门市新会区第二人民医院","公立","二级","新会区冈州大道中98号","0750-6666032","是","是","是","是","是",4320,"韩国迪耀株式会社DIO、登士柏西诺德牙科产品（上海）有限公司","630-1508","佛山市智能臻德齿科有限公司","229-435","5179-6263","无",null,"落实4项专项治理措施"]
[4,"新会区","新会区会城街道办事处社区卫生服务中心","公立","一级及以下","新会区会城新桥路14号","0750-6333659","是","是","是","是","是",3888,"登士柏西诺德牙科产品（上海）有限公司，登腾(广州)医疗器械商贸有限公司","770-1508","中山市新致美义齿科技有限公司","120-1100","4778-6496","无",null,"落实4项专项治理措施"]
[5,"台山市","台山市人民医院","公立","二级","台山环北大道80号","0750-5552012","是","是","是","是","是",4098,"瑞士Institut Straumann AG士卓曼研究院股份公司",1855,"东莞定远陶齿制品有限公司1家企业","258-655","6211-6608","http://www.tsinfo.com.cn/tsrmyy/",null,"落实4项专项治理措施"]
[6,"台山市","台山市妇幼保健院","公立","二级","广东省江门市台山市台城街道办事处顺安路28号","0750-5559618","是","是","是","是","是",4104,"士卓曼（北京）医疗器械贸易有限公司、驭楚（上海）贸易有限公司等2家企业","750-5207","深圳洋紫荆牙科器材有限公司","187-1200","5041-10511","www.ts3861.com",null,"落实4项专项治理措施"]
[7,"开平市","开平市中医院","公立","二级","开平市长沙东郊东路16号","0750-2211201","是","是","是","是","是",4100,"诺保科商贸（上海）有限公司、奥齿泰种植体有限责任公司","585-1855","台山市方圆义齿有限公司、开平市艺丰义齿有限公司","371-650","5056-6605","公众号：开平市中医院","未包含骨粉、骨膜等耗材价格","落实4项专项治理措施"]
[8,"开平市","开平舒适美口腔门诊部","民营","一级及以下","开平市三埠区长沙曙光西路2至6号中间二层","0750-2237880","是","是","是","是","否",3888,"北京迪耀科贸有限公司、奥齿泰（北京）商贸有限公司、皓圣美有限责任公司、士卓曼（北京）医疗器械贸易有限公司","771-6112","深圳康泰健医疗科技股份有限公司","258-2000","4917-12000","公众号：开平舒适美口腔门诊部",null,"落实4项专项治理措施"]
[9,"鹤山市","鹤山市妇幼保健院（鹤山市妇幼保健计划生育服务中心、鹤山市儿童医院）","公立","二级","鹤山大道1156号","0750-8933022","是","是","是","是","是",4104,"常州百康特医疗器械有限公司、奥齿泰种植体有限责任公司、士卓曼（北京）医疗器械贸易有限公司","630-1855","韶关市德维雅义齿技术开发有限公司","224-400","5154-6555","http://www.hssfybjy.cn/","未包含骨粉、骨膜等耗材价格","落实4项专项治理措施"]
[10,"鹤山市","鹤山市人民医院","公立","二级","鹤山市沙坪街道人民路39号","0750-8830521","是","是","是","是","是",4104,"登腾（北京）医疗器械商贸有限公司、士卓曼（北京）医疗器械贸易有限公司","770-1855","中山市新致美义齿科技有限公司","243-1282.5","5117-7241.5","无","未包含骨粉、骨膜等耗材价格","落实4项专项治理措施"]
[11,"蓬江区","江门蓬江啄木口腔门诊部","民营","一级及以下","江门市蓬江区丰乐路20号101之二","0750-7169888","是","是","是","否","是",3888,"登腾（北京）医疗器械商贸有限公司、、江苏创英医疗器械有限公司、登士柏西诺德牙科产品（上海）有限公司","896-3200","广州威利豪医疗器械有限公司","229-786","5013-7874",null,null,"落实3项专项治理措施"]
[12,"江海区","江海德成口腔诊所","民营","一级及以下","广东省江门市江海区江海四路60号114-116室",13717274867,"是","是","是","否","是",3888,"奥齿泰（北京）商贸有限公司、登腾（北京）医疗器械商贸有限公司、诺保科商贸（上海）有限公司、士卓曼（北京）医疗器械贸易有限公司、登士柏西诺德牙科产品（上海）有限公司","700-1855","中山锦冠桥义齿有限公司","322-1057","4980-6800","无",null,"落实3项专项治理措施"]
[13,"江海区","江海艾波健达口腔诊所","民营","一级及以下","江海区德泉路天鹅湾爱琴苑32号101室",13802603836,"是","是","是","种植体执行零差率，牙冠未执行零差率","是",3888,"奥齿泰（北京）商贸有限公司、登腾（北京）医疗器械商贸有限公司、诺保科商贸（上海）有限公司、广州市红实商贸有限公司、四川鸿政博恩口腔科技有限公司","700-1855","中山市新致美义齿科技有限公司、洋紫荆牙科器材（深圳）有限公司、深圳市家鸿口腔医疗股份有限公司、深圳康泰健医疗科技股份有限公司、中山锦冠桥义齿有限公司","280.5-570","4868.5-6313","微信公众号：健达口腔",null,"落实3项专项治理措施"]
[14,"新会区","新会仁和口腔诊所","民营","一级及以下","东庆北路5号4座106-109铺",6131998,"是","是","是","种植体执行零差率，牙冠未执行零差率","是",3680,"韩国迪耀株式会社DIO Corporation",865,"深圳市金悠然科技有限公司",435,4980,"无",null,"落实3项专项治理措施"]
[15,"新会区","江门新会雅言口腔门诊部","民营","一级及以下","江门市新会区 会城振兴二路61号104",13827001351,"是","是","是","种植体执行零差率，牙冠未执行零差率","是",3020,"安卓健股份有限公司 Anthogyr SAS、韩国株式会社DIO Corporation、DENTSPLY implants Manufacturing Gmbh","740-1657","中山锦冠桥义齿有限公司","409-2000","4169-6677","无",null,"落实3项专项治理措施"]
[16,"新会区","新会牙牙乐口腔诊所","民营","一级及以下","广东省江门市新会区三和大道南九号114铺",13828081984,"是","是","是","种植体执行零差率，牙冠未执行零差率","是",3888,"奥齿泰（深圳）商贸有限公司","630-1000","无","409-2000","4927-6888","无",null,"落实3项专项治理措施"]
[17,"新会区","新会冈州医疗有限责任公司","民营","一级及以下","江门市新会区会城镇冈州大道中24号102、105铺",13929070567,"是","是","是","种植体执行零差率，牙冠未执行零差率","是",3295,"登腾（广州）医疗器械有限公司、",770,"中山市新致美义齿科技有限公司","800-1500","4865-5565","无",null,"落实3项专项治理措施"]
[18,"台山市","台山市中医院","公立","二级","台山市沙岗湖路100号",13536062443,"是","否","是","是","是",4097.78,"诺贝尔生物公司",1855,"佛山市南海区桂城福恩德义齿加工场","212-1300","6164.78-7252.78","无",null,"落实3项专项治理措施"]
[19,"蓬江区","江门蓬江齿美口腔门诊部","民营","一级及以下","江门蓬江江侨路72号212-217室",13600355778,"是","是","否","否","否",3888,"登腾（北京）医疗器械商贸有限公司、诺贝尔生物公司、卡瓦盛邦（上海）牙科医疗器械有限公司","770-1855","广州市康创美义齿有限公司","400-2000","5058-7743","江门蓬江齿美口腔门诊部微信公众号","工厂除了瓷牙费用，还会收取植体加工研磨费用，所以并不只是显示的挂网的成本","落实2项专项治理措施"]
[20,"蓬江区","江门蓬江万国口腔门诊部","民营","一级及以下","江门市蓬江区港口一路13号首层自编1F-02，二层自编2F-03室","0750-3320666","是","是","否","否","是",3888,"密易施医疗有限公司 IS Implants\nTechnologiesLtd.、奥齿泰种植体有限责任公司 Osstem Implant Co.,Ltd、士卓曼研究院股份公司 Institut Straumann AG、安卓健股份有限公司\nAnthogwr SAS","771-1855","科钛（广州）医疗器械有限公司、广州悦君义齿研制有限公司","1680-4600","6339- 10343","江门万国口腔（微信公众号）",null,"落实2项专项治理措施"]
[21,"蓬江区","蓬江农世越口腔诊所","民营","一级及以下","江门市蓬江区建设二路133号","07503320337","是","是","否","种植体执行零差率，牙冠未执行零差率","是",3888,"登腾（北京）医疗器械商贸有限公司、北京莱顿医疗器械有限责任公司、士卓曼（北京）医疗器械贸易有限公司","770-1855","广州市康创美义齿有限公司医技联盟","780-2680","5438-8423","无",null,"落实2项专项治理措施"]
[22,"蓬江区","蓬江品悦口腔门诊部","民营","一级及以下","江门蓬江区育德街50号",3381938,"是","是","否","否","否",3888,"江苏创英医疗器械有限\n公司、登士柏种植体制造公司","747-1853","广州市瀚坤医疗器械有限公司","500-1500","5135-7241","蓬江品悦口腔门诊部","工厂除了瓷牙费用，还会收取植体加工研磨费用，所以并不只是显示的挂网的成本","落实2项专项治理措施"]
[23,"蓬江区","江门品悦江华口腔病防治所","民营","一级及以下","江门水南路长发里1号",3118668,"是","是","否","否","否",3888,"江苏创英医疗器械有限\n公司、登士柏种植体制造公司","747-1853","广州市瀚坤医疗器械有限公司","500-1500","5135-7241","蓬江品悦口腔门诊部","工厂除了瓷牙费用，还会收取植体加工研磨费用，所以并不只是显示的挂网的成本","落实2项专项治理措施"]
[24,"蓬江区","江门蓬江博雅口腔门诊部","民营","一级及以下","江门市蓬江区双龙大道71号109、110、111、113室",13822459841,"是","否","是","种植体执行零差率，牙冠未执行零差率","否",3888,"奥齿泰（深圳）商贸有限公司、瑞士Institut Straumann AG士卓曼研究院股份有限公司","771-1856","广州市帕菲克义齿科技有限公司",650,"5309-6394",null,null,"落实2项专项治理措施"]
[25,"蓬江区","江门光辉口腔诊所","民营","一级及以下","江门市蓬江区育德街61号103、104、203、204、205、206、207、208、209、210",13422505056,"是","是","否","否","否",3888,"奥齿泰(北京)商贸有限公司、瑞士InstitutStraumann AG士卓曼研究院股份有限公司、安卓健股份有限公司Anthogwr SAS、B&B齿科公司B. & B. Dental s.r.1.","771-10080","中山市新致美义齿科技有限公司、佛山市智能臻德齿科有限公司、东莞市酷美义齿有限公司",780,"5439-14748","江门光辉口腔诊所","种植牙除了有种植体和基台一套成本，还有愈合基台和其余配件，这些并没有在集采套系价体现，工厂除了瓷牙费用，还会收取植体加工研磨费用，所以并不只是显示的挂网的成本","落实2项专项治理措施"]
[26,"江海区","江门协诚口腔诊所","民营","一级及以下","江海区东海路2号113室","0750-3987186","是","是","否","否","是",3888,"登腾（北京）医疗器械商贸有限公司、登士柏西诺德牙科产品（上海）有限公司","1155-1530","中山锦冠桥义齿有限公司",660,"5703-6078","无",null,"落实2项专项治理措施"]
[27,"江海区","江海新时代口腔诊所","民营","一级及以下","江门市江海区东海路79号107/108/111室","0750-3761268","是","是","否","种植体执行零差率，牙冠未执行零差率","是",3888,"常州百康特医疗器械有限公司、登腾（北京）医疗器械商贸有限公司等2家企业","792-1792","广州市康创美义齿有限公司","411-1000","5680-6680","http://xsdkq.cn.xinclo.xyz/",null,"落实2项专项治理措施"]
[28,"江海区","江海齿美万方口腔诊所","民营","一级及以下","广东省江门市江海区中华大道6号",13542156916,"是","是","否","否","是",3880,"奥齿泰（北京）商贸有限公司",1000,"广州市康创美义齿有限公司",1500,6380,"无",null,"落实2项专项治理措施"]
[29,"江海区","江门德仁口腔诊所","民营","一级及以下","广东省江门市礼乐礼德街8号118地铺","0750-3633533","是","是","否","否","是",3888,"常州百康特医疗器械有限公司、士曼（北京）医疗器械贸易有限公司、登士柏西诺德牙科产品（上海）有限公司","945-5812","中山市新致美义齿科技有限公司","713-6800","5545-16500","无","未包含基体、螺丝、骨粉、骨膜等耗材价格。","落实2项专项治理措施"]
[30,"鹤山市","鹤山沙坪齿康丽口腔诊所","民营","一级及以下","鹤山沙坪铁夫路572、574号",13432268584,"是","是","否","否","否",3888,"士卓曼（北京）医疗器械贸易有限公司、奥齿泰（北京）商贸有限公司","771-1855","佛山市至善义齿有限公司","800-4000","5621-9905","无","未包含骨粉、骨膜等耗材价格","落实2项专项治理措施"]
[31,"鹤山市","鹤山市沙坪光护口腔诊所","民营","一级及以下","鹤山大道631号",13902557368,"是","是","否","否","否",3888,"士卓曼（北京）医疗器械贸易有限公司、奥齿泰（北京）商贸有限公司","771-10080","佛山市牙道义齿有限公司","1000-5000","5659-19130","无","未包含骨粉、骨膜等耗材价格","落实2项专项治理措施"]
[32,"鹤山市","鹤山市沙坪礼仁口腔诊所","民营","一级及以下","鹤山市沙坪街道凤盈西街20号",13711776639,"是","是","否","否","否",3888,"士卓曼（北京）医疗器械贸易有限公司、奥齿泰（北京）商贸有限公司","771-5922","广州市锦冠桥义齿有限公司","500-4500","5159-14310","无","未包含骨粉、骨膜等耗材价格","落实2项专项治理措施"]
[33,"鹤山市","鹤山市沙坪雅友口腔诊所","民营","一级及以下","鹤山市沙坪街道新城路44号之二之四",13425992826,"是","是","否","否","否",3888,"登腾（北京）医疗器械商贸有限公司、北京莱顿医疗器械有限责任公司","770-1163","广州市康创美义齿有限公司","800-5000","5458-10051","无","未包含骨粉、骨膜等耗材价格","落实2项专项治理措施"]
[34,"蓬江区","蓬江品洁口腔门诊部","民营","一级及以下","江门市蓬江区白石大道136号113、115、117、119室，136号之二201、202室",13702270952,"是","否","否","否","否",3888,"奥齿泰（北京）商贸有限公司、登士柏西诺德牙科产品（上海）有限公司","771-1853","中山市新致美义齿科技有限公司","528-760","5187-6501",null,null,"落实1项专项治理措施"]
[35,"蓬江区","蓬江吴惠菊口腔诊所","民营","一级及以下","港口一路31号104",17765766930,"是","否","否","否","否",3888,"登腾（广州）医疗器械有限公司",1450,"江门市美峰义齿科技有限公司","350-1500","5000-9000",null,null,"落实1项专项治理措施"]
[36,"蓬江区","江门蓬江爱齿健口腔门诊部","民营","一级及以下","江门市蓬江区荷塘镇民兴路1号101室",15807504188,"是","否","否","否","是",3888,"奥齿泰种植体有限公司",771,"中山市新致美义齿科技有限公司","267.3-303.8","4926-4962.8","蓬江钊强口腔诊所","工厂除了瓷牙费用，还会收取植体加工研磨费用，所以并不只是显示的挂网的成本","落实1项专项治理措施"]
[37,"蓬江区","蓬江钊强口腔诊所","民营","一级及以下","江门市蓬江区港口二路3号115室、117室",15807504188,"是","否","否","否","是",3888,"奥齿泰种植体有限公司",771,"中山市新致美义齿科技有限公司","267.3-303.8","4926-4962.8","蓬江钊强口腔诊所","工厂除了瓷牙费用，还会收取植体加工研磨费用，所以并不只是显示的挂网的成本","落实1项专项治理措施"]
[38,"蓬江区","江门蓬江邑邑口腔门诊部","民营","一级及以下","江门市蓬江区海逸城邦花园3号1101室、1102室",18026886576,"是","否","否","否","否",3888,"韩国登腾株式会社DENTUIM Co., Ltd.、瑞士Institut Straumann AG士卓曼研究院股份公司等2家企业","771-3339","洋紫荆牙科器材（深圳）有限公司","412-1180","5047-8407","江门蓬江邑邑口腔门诊部",null,"落实1项专项治理措施"]
[39,"江海区","江海凯博联合门诊部","民营","一级及以下","江门市江海区仁美里1号首层（江南商会隔壁）","0750-3821981","是","否","否","否","否",3888,"奥齿泰",650,"中山市新致美义齿科技有限公司","222-728","4760-5266","http://jhkb.booen.co/",null,"落实1项专项治理措施"]
[40,"台山市","台山市考拉口腔门诊有限责任公司","民营","一级及以下","台山市台城镇碧桂园繁华里商业中心二区203-206商铺",17728231383,"否","是","否","否","否",4275,"奥齿泰（北京）商贸有限公司、士卓曼（北京）医疗器械贸易有限公司","771-6430","佛山市智能臻德齿科有限公司","1000-2500","6046-13205","公众号：台山考拉口腔门诊",null,"落实1项专项治理措施"]
[41,"台山市","台山市台城叶氏姊妹口腔门诊部","民营","一级及以下","台山市台城石花华侨新村9号","0750-5525646","否","是","否","种植体执行零差率，牙冠未执行零差率","是",4104,"奥齿泰（深圳）商贸有限公司、登士柏西诺德牙科产品（上海）有限公司","771-1853","广州华昌义齿有限公司","1580-4380","6455-10337",null,null,"落实1项专项治理措施"]
[42,"台山市","叶嘉捷口腔诊所","民营","一级及以下","广东省台山市台城海园新村25-1号106房",13822425916,"否","是","否","否","否",4275,"驭楚（上海）贸易有限公司、士卓曼（中国）投资有限公司","750-6743","广州华昌义齿有限公司","1300-2600","6325-13618",null,null,"落实1项专项治理措施"]
[43,"台山市","台山志泳医疗投资有限公司敏捷悦府口腔门诊部","民营","一级及以下","台山市台城陈宜禧路南251号敏捷悦府1号商业122室","0750-5510077","否","否","否","是","否",4030,"登腾（广州）医疗器械有限公司",770,"东莞市富诚医疗用品有限公司","200-438","5000-5238","无",null,"落实1项专项治理措施"]
[44,"开平市","开平众顺口腔门诊部","民营","一级及以下","开平市三埠区长沙光明路101号二层201号铺位",18138093353,"是","否","否","否","否",3888,"韩国仕诺康株式会社SNUCONE CO., LTD.登士柏西诺德牙科产品（上海）有限公司，奥齿泰（北京）商贸有限公司","647-10161","东莞市华跃义齿科技有限公司","160-3680","4695-17729","公众号：开平众顺口腔",null,"落实1项专项治理措施"]
[45,"开平市","开平德雅口腔门诊部","民营","一级及以下","开平市长沙街道办事处幕沙路53号1-3层","0750-2023223","是","否","否","否","否",3888,"登腾（广州）医疗器械有限公司、瑞士士卓曼研究院股份公司Institut\nStraumann AG、奥齿泰（深圳）商贸有限公司等3家企业","770-7645","深圳康泰健医疗科技股份有限公司","258-655","4916-12188","无","价格包含集采及非集采种植体系统。","落实1项专项治理措施"]
[46,"开平市","李健栩口腔诊所","民营","一级及以下","开平市三埠街道办事处祥龙中路50号领美花园23栋首层118-122铺位",13824076060,"是","否","否","否","否",3888,"登腾（广州）医疗器械有限公司、广东益升齿康医疗科技有限公司","770-8000","深圳康泰健医疗科技股份有限公司、深圳市澳美德牙科器材有限公司、广州市瀚坤医疗器械有限公司、广州华昌义齿有限公司 ","800-2500","5138-14388","公众号：开平市三埠李健栩口腔",null,"落实1项专项治理措施"]
[47,"开平市","开平品诚口腔门诊部","民营","一级及以下","开平市幸福路24号3幢9-13铺位",13059279917,"是","否","否","否","否",3888,"登腾（广州）医疗器械有限公司、广东益升齿康医疗科技有限公司","700-8000","深圳康泰健医疗科技股份有限公司、洋紫荆牙科器材（深圳）有限公司、中山市新致美义齿科技有限公司","230-1500","4888-13388","无","集采牙冠质量水平会偏低，不是所有的客人都会接受，最高的3M Lava","落实1项专项治理措施"]
[48,"开平市","余健华口腔诊所","民营","一级及以下","开平市长沙区宝源路2号5幢首层113-114号铺位",18929077611,"是","否","否","否","否",3888,"登腾株式会社Dentium Co., Ltd.\n意大利西泰克","770-8000","深圳金悠然、深圳康泰健、深圳名扬牙科","409-4880","5555-16500","无",null,"落实1项专项治理措施"]
[49,"开平市","周宪湛口腔诊所","民营","一级及以下","开平市长沙幕桥西路金都花苑东区2号4幢首层108-109铺",13702222972,"是","否","否","否","否",3880,"登腾","770-8000","深圳康泰健医疗股份有限公司","480-2500","5138-14388","无",null,"落实1项专项治理措施"]
[50,"开平市","开平艺齿口腔诊所","民营","一级及以下","开平市长沙街道办事处宝堤东路7号首层108号铺位、7号202","0750-2280188","是","否","否","否","否",3888,"登腾（北京）医疗器械商贸有限公司、奥齿泰种植体有限责任公司、士卓曼（北京）医疗器械贸易有限公司、诺保科商贸（上海）有限公司、等4家企业","770-9800","中山市新致美义齿科技有限公司、深圳康泰健医疗科技股份有限公司、开平市金资塔医疗器械有限公司等3家企业","331-3200","4989-16888","无","未包含骨粉、骨膜等耗材价格","落实1项专项治理措施"]
[51,"开平市","开平博越口腔诊所","民营","一级及以下","开平市水口镇民福路29号绿苑山庄6区170铺位",13526158632,"是","否","否","否","否",3888,"登腾（广州）医疗器械有限公司",770,"韶关市丹雪牙科技术开发有限公司","230-1500","4888-6158","无",null,"落实1项专项治理措施"]
[52,"开平市","吴伟云口腔诊所","民营","一级及以下","开平市长沙区东兴大道人民西路6号3幢首层104、105、106号铺位",13542153807,"是","否","否","否","否",3888,"登腾（广州）医疗器械有限公司、广东益升齿康医疗科技有限公司、士卓曼研究院股份公司","770-14388","中山锦冠桥\\中山新致美","480-2500","5138-14388","无",null,"落实1项专项治理措施"]
[53,"新会区","新会陈经纶医院","民营","二级","江门市新会区会城今洲路48号","0750-6368800","否","否","否","否","否",4300,"奥齿泰（深圳）商贸有限公司",889,"中山市新致美义齿科技有限公司、广州市威利豪医疗器械有限公司等2家企业","468-1320","5657-6509","无",null,"完全不响应专项治理措施"]
[54,"新会区","江门新会文华口腔诊所","民营","一级及以下","江门市新会区 会城文华路18号21座112-113",13822354938,"否","否","否","种植体执行零差率，牙冠未执行零差率","否",3800,"奥齿泰（深圳）商贸有限公司","630-1000","广州市康创美义齿有限公司","275-1188","4705-5988","无",null,"完全不响应专项治理措施"]
[55,"新会区","江门新会新纬度口腔门诊部","民营","一级及以下","江门市新会区会城启超大道50号6号楼自编301、302、303、304、401","0750-6110750","否","否","否","否","否",3800,"登士柏西诺德牙科产品（上海）有限公司、奥齿泰种植体有限责任公司、常州百康特医疗器械有限公司","630-1850","门诊有技工室","400-3000","4830-8650","无",null,"完全不响应专项治理措施"]
[56,"新会区","江门新会健齿口腔门诊部","民营","一级及以下","江门市新会区会城冈州大道中41号102","0750-6110556","否","否","否","否","否",3800,"奥齿泰（北京）商贸有限公司","630-1000","无","409-2000","4839-6800","无",null,"完全不响应专项治理措施"]
[57,"新会区","新会金球口腔诊所","民营","一级及以下","新会区五和镇五和村委会11-1号",17376990885,"否","否","否","否","否",3888,"韩国仕诺康","770-9800","深圳康泰健医疗科技股份有限公司","331-3200","4989-16888","无",null,"完全不响应专项治理措施"]
[58,"新会区","天使口腔诊所","民营","一级及以下","江门市新会区会城中心南中路9号104",13316740189,"否","否","否","否","否",3888,"登腾（广州）医疗器械有限公司、登士柏西诺德牙科产品（上海）有限公司","822-2322","中山锦冠桥义齿有限公司",1090,"5800-7300","无",null,"完全不响应专项治理措施"]
[59,"台山市","台山维斯达医疗投资有限公司台城东门口腔门诊部","民营","一级及以下","台山市台城富城大道93号102房东面第二卡",15875003261,"否","否","否","否","否",4300,"登腾（广州）医疗器械有限公司、广东益升齿康医疗科技有限公司、广州市红实商贸有限公司","880-3620","新致美义齿科技有限公司","880-2360","6060-10280",null,null,"完全不响应专项治理措施"]
[60,"台山市","谭锦宏口腔诊所","民营","一级及以下","广东省台山市台城街道圣元里37号之一",13902588328,"否","否","否","种植体执行零差率，牙冠未执行零差率","否",4300,"登腾(北京)医疗器械商贸有限公司",770,"深圳市金悠然科技有限公司",2500,7570,null,null,"完全不响应专项治理措施"]
[61,"台山市","台山信爱京文口腔门诊部","民营","一级及以下","台山市台城环市中路38号沃华中环广场三楼","0750-5512513","否","否","否","种植体执行零差率，牙冠未执行零差率","否",4300,"1：登腾（广州）医疗器械有限公司、2：百康丹拓（北京）科技有限公司、3：登士柏西诺德牙科产品（上海）有限公司","770-4720","1广州市瀚坤医疗器械有限公司    2深圳康泰健医疗科技股份有限公司3洋紫荆牙科器材（深圳）有限公司","800-2500","5870-11520",null,null,"完全不响应专项治理措施"]
[62,"台山市","台山壹心维美口腔门诊部","民营","一级及以下","台山市台城舜德路131号金茂广场商业楼一层1001-1004号",18948966618,"否","否","否","否","否",4050,"奥齿泰（深圳）商贸有限公司、广东益升齿康医疗科技有限公司、华植医疗科技（深圳）有限公司","1821-9804","旭日牙科器材（深圳）有限公司","1260-4800","7131-18654","http://www.yxwmkq.com/",null,"完全不响应专项治理措施"]
[63,"台山市","台山华辉口腔门诊部","民营","一级及以下","台山市台城街道办事处龙翔路1号骏景湾悦峰花园商业6栋101室、102室、103室、105室、106室、107室、108室","0750-5229688","否","否","否","否","否",3658,"韩国Dentium Co.，Ltd.、士卓曼（中国）投资有限公司、西泰克医疗器械(天津)有限公司等3家企业","1275-7457","钟天乐齿科技（东莞）有限公司、台山市台城华开义齿制作中心、中山市新致美义齿科技有限公司等3家企业",700,"5633-11815","公众号：台山华辉口腔",null,"完全不响应专项治理措施"]
[64,"开平市","开平跃彰口腔诊所","民营","一级及以下","开平市水口镇新华路59号3幢首层104、015号铺位",18948096937,"否","否","否","否","否",4300,"登腾（广州）医疗器械有限公司",770,"中山市新致美义齿科技有限公司",1500,6570,"无",null,"完全不响应专项治理措施"]
[{"$f":"ROW()-2","v":65},"开平市","开平誉景口腔诊所","民营","一级及以下","开平市幕桥西路8号5幢107-110铺位","0750-8239222","否","否","否","否","否",3888,"奥齿泰种植体有限责任公司，美国圣皓种植体公司","770-3000","中山市新致美义齿科技有限公司，开平艺丰义齿有限公司，中山锦冠桥义齿有限公司","1500-4500","6158-11388","无","不包含种植牙手术相关的骨增量手术的耗材就手术费用",{"$f":"IF(COUNTIF(H67:K67,\"是\")=0,\"完全不响应专项治理措施\",\"落实\"&COUNTIF(H67:I67,\"是\")+COUNTIF(J67:K67,\"是\")&\"项专项治理措施\")","v":"完全不响应专项治理措施"}]

{"sheet":"Sheet1","index":1,"n_rows":64,"n_cols":1,"rows_kept":64}
["江门市中心医院"]
["江门市口腔医院（江门市牙病防治指导中心）"]
["江门市新会区第二人民医院"]
["台山市人民医院"]
["台山市妇幼保健院"]
["台山市中医院"]
["开平市中医院"]
["鹤山市妇幼保健院（鹤山市妇幼保健计划生育服务中心、鹤山市儿童医院）"]
["鹤山市人民医院"]
["开平舒适美口腔门诊部"]
["江门蓬江啄木口腔门诊部"]
["江海德成口腔诊所"]
["江海艾波健达口腔诊所"]
["新会仁和口腔诊所"]
["江门新会雅言口腔门诊部"]
["新会牙牙乐口腔诊所"]
["新会冈州医疗有限责任公司"]
["江门蓬江齿美口腔门诊部"]
["江门蓬江万国口腔门诊部"]
["蓬江农世越口腔诊所"]
["江门江华口腔病防治所"]
["蓬江品悦口腔门诊部"]
["江门蓬江博雅口腔门诊部"]
["江门光辉口腔诊所"]
["江门协诚口腔诊所"]
["江海新时代口腔诊所"]
["江海齿美万方口腔诊所"]
["江门德仁口腔诊所"]
["鹤山沙坪齿康丽口腔诊所"]
["鹤山市沙坪光护口腔诊所"]
["鹤山市沙坪礼仁口腔诊所"]
["鹤山市沙坪雅友口腔诊所"]
["蓬江品洁口腔门诊部"]
["蓬江吴惠菊口腔诊所"]
["江门蓬江爱齿健口腔门诊部"]
["蓬江钊强口腔诊所"]
["江门蓬江邑邑口腔门诊部"]
["江海凯博联合门诊部"]
["台山市考拉口腔门诊有限责任公司"]
["台山市台城叶氏姊妹口腔门诊部"]
["叶嘉捷口腔诊所"]
["台山志泳医疗投资有限公司敏捷悦府口腔门诊部"]
["开平众顺口腔门诊部"]
["开平德雅口腔门诊部"]
["李健栩口腔诊所"]
["开平品诚口腔门诊部"]
["余健华口腔诊所"]
["周宪湛口腔诊所"]
["开平艺齿口腔诊所"]
["开平博越口腔诊所"]
["吴伟云口腔诊所"]
["新会陈经纶医院"]
["江门新会文华口腔诊所"]
["江门新会新纬度口腔门诊部"]
["江门新会健齿口腔门诊部"]
["新会金球口腔诊所"]
["天使口腔诊所"]
["台山维斯达医疗投资有限公司台城东门口腔门诊部"]
["谭锦宏口腔诊所"]
["台山信爱京文口腔门诊部"]
["台山壹心维美口腔门诊部"]
["台山华辉口腔门诊部"]
["开平跃彰口腔诊所"]
["开平誉景口腔诊所"]